fUST/lending_fUST_20250914
["ID","MTS","AMOUNT","RATE_DAILY","PERIOD"]
[385439977,1757850643719,-480.0,0.00021917,2]
[385439978,1757850643729,-480.0,0.00021917,2]
[385439979,1757850643738,-480.0,0.00021917,2]
[385439980,1757850643748,-480.0,0.00021917,2]
[385439981,1757850643757,-1139.87,0.00021917,2]
[385439982,1757850643766,-480.0,0.00021917,2]
[385439983,1757850643776,-1187.29,0.00021917,2]
[385439984,1757850643785,-910.96,0.00021917,2]
[385439985,1757850643793,-480.0,0.00021917,2]
[385439986,1757850643802,-480.0,0.00021917,2]
[385439987,1757850643812,-480.0,0.00021917,2]
[385439988,1757850643821,-480.0,0.00021917,2]
[385439989,1757850643830,-480.0,0.00021917,2]
[385439990,1757850643839,-502.33719935,0.00021917,2]
[385439991,1757850643849,-480.0,0.00021917,2]
[385439992,1757850643858,-582.12,0.00021917,2]
[385439993,1757850643867,-480.0,0.00021917,2]
[385439994,1757850643877,-1072.23,0.00021917,2]
[385439995,1757850643886,-480.0,0.00021917,2]
[385439996,1757850643895,-680.66,0.00021917,2]
[385439997,1757850643904,-1021.14,0.00021917,2]
[385439998,1757850643913,-480.0,0.00021917,2]
[385439999,1757850643922,-480.0,0.00021917,2]
[385440000,1757850643931,-1404.19,0.00021917,2]
[385440001,1757850643940,-480.0,0.00021917,2]
[385440002,1757850643949,-1002.28,0.00021917,2]
[385440003,1757850643961,-607.53062348,0.00021917,2]
[385440004,1757850643970,-480.0,0.00021917,2]
[385440005,1757850643979,-480.0,0.00021917,2]
[385440006,1757850643988,-480.0,0.00021917,2]
[385440007,1757850643998,-590.99,0.00021917,2]
[385440008,1757850644007,-480.0,0.00021917,2]
[385440009,1757850644016,-480.0,0.00021917,2]
[385440010,1757850644025,-547.93,0.00021917,2]
[385440011,1757850644034,-480.0,0.00021917,2]
[385440012,1757850644044,-480.0,0.00021917,2]
[385440013,1757850644055,-1204.87,0.00021917,2]
[385440014,1757850644064,-480.0,0.00021917,2]
[385440015,1757850644073,-480.0,0.00021917,2]
[385440016,1757850644082,-480.0,0.00021917,2]
[385440017,1757850644091,-480.0,0.00021917,2]
[385440018,1757850644100,-817.16,0.00021917,2]
[385440019,1757850644110,-480.0,0.00021917,2]
[385440020,1757850644119,-890.29,0.00021917,2]
[385440021,1757850644130,-840.21,0.00021917,2]
[385440022,1757850644139,-658.77,0.00021917,2]
[385440023,1757850644148,-480.0,0.00021917,2]
[385440024,1757850644157,-480.0,0.00021917,2]
[385440025,1757850644166,-615.84999281,0.00021917,2]
[385440026,1757850644176,-480.0,0.00021917,2]
[385440027,1757850644185,-571.14,0.00021917,2]
[385440028,1757850644194,-722.3,0.00021917,2]
[385440029,1757850644204,-480.0,0.00021917,2]
[385440030,1757850644213,-480.0,0.00021917,2]
[385440031,1757850644222,-480.0,0.00021917,2]
[385440032,1757850644231,-480.0,0.00021917,2]
[385440033,1757850644241,-171.87259867,0.00021917,2]
[385440034,1757850644251,-481.53692868,0.00021917,2]
[385440035,1757850644260,-482.80431564,0.00021917,2]
[385440036,1757850644270,-480.0,0.00021917,2]
[385440037,1757850644279,-480.0,0.00021917,2]
[385440038,1757850644288,-480.0,0.00021917,2]
[385440039,1757850644298,-480.0,0.00021917,2]
[385440040,1757850644308,-386.09835,0.00021917,2]
[385440041,1757850644317,-480.0,0.00021917,2]
[385440042,1757850644326,-480.0,0.00021917,2]
[385440043,1757850644335,-490.3198912,0.00021917,2]
[385440044,1757850644344,-480.0,0.00021917,2]
[385440045,1757850644354,-649.9,0.00021917,2]
[385440046,1757850644363,-921.7,0.00021917,2]
[385440047,1757850644372,-481.01623842,0.00021917,2]
[385440048,1757850644381,-480.0,0.00021917,2]
[385440049,1757850644390,-480.0,0.00021917,2]
[385440050,1757850644399,-480.0,0.00021917,2]
[385440051,1757850644409,-480.0,0.00021917,2]
[385440052,1757850644418,-481.47537724,0.00021917,2]
[385440053,1757850644428,-480.0,0.00021917,2]
[385440054,1757850644437,-481.43627571,0.00021917,2]
[385440055,1757850644446,-480.0,0.00021917,2]
[385440056,1757850644455,-173.16880806,0.00021917,2]
[385440057,1757850644464,-226.44135522,0.00021917,2]
[385440058,1757850644474,-1123.01,0.00021917,2]
[385440059,1757850644484,-480.0,0.00021917,2]
[385440060,1757850644493,-480.77447719,0.00021917,2]
[385440061,1757850644502,-480.0,0.00021917,2]
[385440062,1757850644511,-480.0,0.00021917,2]
[385440063,1757850644520,-480.0,0.00021917,2]
[385440064,1757850644530,-480.85096437,0.00021917,2]
[385440065,1757850644539,-481.04834399,0.00021917,2]
[385440066,1757850644548,-480.0,0.00021917,2]
[385440067,1757850644557,-905.25,0.00021917,2]
[385440068,1757850644566,-480.0,0.00021917,2]
[385440069,1757850644575,-480.0,0.00021917,2]
[385440070,1757850644585,-481.61832849,0.00021917,2]
[385440071,1757850644594,-938.29,0.00021917,2]
[385440072,1757850644603,-480.0,0.00021917,2]
[385440073,1757850644612,-468.20149163,0.00021917,2]
[385440074,1757850644621,-480.0,0.00021917,2]
[385440075,1757850644630,-1063.14,0.00021917,2]
[385440076,1757850644639,-182.89383219,0.00021917,2]
[385440077,1757850644649,-505.52795029,0.00021917,2]
[385440078,1757850644659,-480.0,0.00021917,2]
[385440079,1757850644669,-480.0,0.00021917,2]
[385440080,1757850644678,-480.0,0.00021917,2]
[385440081,1757850644687,-480.0,0.00021917,2]
[385440082,1757850644696,-480.0,0.00021917,2]
[385440083,1757850644705,-527.55,0.00021917,2]
[385440084,1757850644714,-1007.45,0.00021917,2]
[385440085,1757850644723,-480.0,0.00021917,2]
[385440086,1757850644732,-480.0,0.00021917,2]
[385440087,1757850644741,-480.0,0.00021917,2]
[385440088,1757850644751,-480.0,0.00021917,2]
[385440089,1757850644759,-480.0,0.00021917,2]
[385440090,1757850644769,-5800.17,0.00021917,2]
[385440091,1757850644778,-480.0,0.00021917,2]
[385440092,1757850644787,-1459.03,0.00021917,2]
[385440093,1757850644796,-480.0,0.00021917,2]
[385440094,1757850644805,-2808.41,0.00021917,2]
[385440095,1757850644819,-576.55,0.00021917,2]
[385440096,1757850644832,-480.0,0.00021917,2]
[385440097,1757850644844,-4103.5,0.00021917,2]
[385440098,1757850644856,-480.0,0.00021917,2]
[385440099,1757850644867,-480.0,0.00021917,2]
[385440100,1757850644878,-480.0,0.00021917,2]
[385440101,1757850644890,-480.0,0.00021917,2]
[385440102,1757850644902,-480.0,0.00021917,2]
[385440103,1757850644914,-480.0,0.00021917,2]
[385440104,1757850644926,-480.0,0.00021917,2]
[385440105,1757850644939,-794.44,0.00021917,2]
[385440106,1757850644951,-480.0,0.00021917,2]
[385440107,1757850644968,-480.0,0.00021917,2]
[385440108,1757850644980,-572.88,0.00021917,2]
[385440109,1757850644992,-480.0,0.00021917,2]
[385440110,1757850645003,-1176.09,0.00021917,2]
[385440111,1757850645015,-480.82961122,0.00021917,2]
[385440112,1757850645026,-480.0,0.00021917,2]
[385440113,1757850645038,-480.0,0.00021917,2]
[385440114,1757850645051,-1444.07,0.00021917,2]
[385440115,1757850645064,-783.85,0.00021917,2]
[385440116,1757850645075,-647.7,0.00021917,2]
[385440117,1757850645086,-480.0,0.00021917,2]
[385440118,1757850645096,-480.0,0.00021917,2]
[385440119,1757850645107,-480.0,0.00021917,2]
[385440120,1757850645118,-867.92,0.00021917,2]
[385440121,1757850645130,-524.15,0.00021917,2]
[385440122,1757850645142,-481.10450259,0.00021917,2]
[385440123,1757850645155,-481.53523181,0.00021917,2]
[385440124,1757850645167,-480.0,0.00021917,2]
[385440125,1757850645179,-482.294357,0.00021917,2]
[385440126,1757850645192,-389.41,0.00021917,2]
[385440127,1757850645207,-480.0,0.00021917,2]
[385440128,1757850645221,-2303.29,0.00021917,2]
[385440129,1757850645234,-7254.42,0.00021917,2]
[385440130,1757850645244,-480.0,0.00021917,2]
[385440131,1757850645254,-547.88531598,0.00021917,2]
[385440132,1757850645265,-1259.6,0.00021917,2]
[385440133,1757850645277,-480.0,0.00021917,2]
[385440134,1757850645291,-480.0,0.00021917,2]
[385440135,1757850645303,-650.91,0.00021917,2]
[385440136,1757850645315,-480.0,0.00021917,2]
[385440137,1757850645326,-480.0,0.00021917,2]
[385440138,1757850645337,-794.97,0.00021917,2]
[385440139,1757850645348,-2344.27,0.00021917,2]
[385440140,1757850645360,-26637.54,0.00021917,2]
[385440141,1757850645372,-480.0,0.00021917,2]
[385440142,1757850645382,-480.0,0.00021917,2]
[385440143,1757850645393,-480.0,0.00021917,2]
[385440144,1757850645404,-849.46,0.00021917,2]
[385440145,1757850645416,-661.13,0.00021917,2]
[385440146,1757850645427,-480.0,0.00021917,2]
[385440147,1757850645438,-560.67,0.00021917,2]
[385440148,1757850645449,-480.0,0.00021917,2]
[385440149,1757850645460,-480.0,0.00021917,2]
[385440150,1757850645471,-1494.83,0.00021917,2]
[385440151,1757850645482,-642.35,0.00021917,2]
[385440152,1757850645495,-480.0,0.00021917,2]
[385440153,1757850645506,-1667.85,0.00021917,2]
[385440154,1757850645518,-480.0,0.00021917,2]
[385440155,1757850645529,-480.0,0.00021917,2]
[385440156,1757850645540,-480.0,0.00021917,2]
[385440157,1757850645551,-1051.33,0.00021917,2]
[385440158,1757850645563,-480.0,0.00021917,2]
[385440159,1757850645574,-932.53,0.00021917,2]
[385440160,1757850645585,-1124.13,0.00021917,2]
[385440161,1757850645596,-480.0,0.00021917,2]
[385440162,1757850645608,-480.0,0.00021917,2]
[385440163,1757850645619,-1554.03,0.00021917,2]
[385440164,1757850645630,-480.0,0.00021917,2]
[385440165,1757850645641,-480.0,0.00021917,2]
[385440166,1757850645652,-1576.57,0.00021917,2]
[385440167,1757850645663,-480.0,0.00021917,2]
[385440168,1757850645674,-1154.89,0.00021917,2]
[385440169,1757850645686,-818.01,0.00021917,2]
[385440171,1757850645697,-2957.23,0.00021917,2]
[385440172,1757850645708,-480.0,0.00021917,2]
[385440173,1757850645720,-480.0,0.00021917,2]
[385440174,1757850645731,-485.4253694,0.00021917,2]
[385440175,1757850645743,-1595.27,0.00021917,2]
[385440176,1757850645754,-480.0,0.00021917,2]
[385440177,1757850645766,-480.0,0.00021917,2]
[385440178,1757850645777,-3382.66,0.00021917,2]
[385440179,1757850645789,-480.0,0.00021917,2]
[385440180,1757850645800,-4258.82,0.00021917,2]
[385440181,1757850645811,-480.0,0.00021917,2]
[385440182,1757850645823,-480.0,0.00021917,2]
[385440183,1757850645834,-2411.69,0.00021917,2]
[385440184,1757850645846,-480.0,0.00021917,2]
[385440185,1757850645857,-480.0,0.00021917,2]
[385440186,1757850645868,-480.0,0.00021917,2]
[385440187,1757850645879,-840.39,0.00021917,2]
[385440188,1757850645890,-480.0,0.00021917,2]
[385440189,1757850645902,-480.0,0.00021917,2]
[385440190,1757850645913,-482.79850881,0.00021917,2]
[385440191,1757850645924,-480.0,0.00021917,2]
[385440192,1757850645934,-480.0,0.00021917,2]
[385440193,1757850645945,-480.0,0.00021917,2]
[385440194,1757850645958,-480.0,0.00021917,2]
[385440195,1757850645971,-480.0,0.00021917,2]
[385440196,1757850645982,-480.0,0.00021917,2]
[385440197,1757850645993,-480.0,0.00021917,2]
[385440198,1757850646003,-482.26976189,0.00021917,2]
[385440199,1757850646015,-480.0,0.00021917,2]
[385440200,1757850646025,-480.0,0.00021917,2]
[385440201,1757850646038,-480.0,0.00021917,2]
[385440202,1757850646050,-500.0,0.00021917,2]
[385440203,1757850646061,-480.0,0.00021917,2]
[385440204,1757850646072,-480.0,0.00021917,2]
[385440205,1757850646083,-7230.36,0.00021917,2]
[385440206,1757850646095,-716.09,0.00021917,2]
[385440207,1757850646107,-480.0,0.00021917,2]
[385440208,1757850646118,-677.71,0.00021917,2]
[385440209,1757850646130,-3075.01,0.00021917,2]
[385440210,1757850646143,-480.0,0.00021917,2]
[385440211,1757850646154,-480.0,0.00021917,2]
[385440212,1757850646166,-961.64,0.00021917,2]
[385440213,1757850646177,-480.0,0.00021917,2]
[385440214,1757850646189,-480.0,0.00021917,2]
[385440215,1757850646200,-480.0,0.00021917,2]
[385440216,1757850646210,-480.0,0.00021917,2]
[385440217,1757850646222,-480.0,0.00021917,2]
[385440218,1757850646233,-480.0,0.00021917,2]
[385440219,1757850646244,-480.0,0.00021917,2]
[385440220,1757850646255,-480.0,0.00021917,2]
[385440221,1757850646266,-480.0,0.00021917,2]
[385440222,1757850646277,-480.0,0.00021917,2]
[385440223,1757850646288,-480.0,0.00021917,2]
[385440224,1757850646300,-480.0,0.00021917,2]
[385440225,1757850646311,-375.04552266,0.00021917,2]
[385440226,1757850646321,-480.0,0.00021917,2]
[385440227,1757850646333,-4613.52,0.00021917,2]
[385440228,1757850646344,-480.0,0.00021917,2]
[385440230,1757850646356,-480.0,0.00021917,2]
[385440232,1757850646368,-480.0,0.00021917,2]
[385440234,1757850646379,-480.0,0.00021917,2]
[385440236,1757850646390,-396.01396244,0.00021917,2]
[385440238,1757850646399,-724.43,0.00021917,2]
[385440240,1757850646409,-1100.56,0.00021917,2]
[385440242,1757850646418,-973.39,0.00021917,2]
[385440244,1757850646428,-480.0,0.00021917,2]
[385440246,1757850646437,-1655.44,0.00021917,2]
[385440247,1757850646644,-749.04,0.00021917,2]
[385440248,1757850646663,-488.94718418,0.00021917,2]
[385440249,1757850646675,-481.23899459,0.00021917,2]
[385440250,1757850646684,-2054.15,0.00021917,2]
[385440251,1757850646694,-1273.75,0.00021917,2]
[385440252,1757850646703,-480.0,0.00021917,2]
[385440253,1757850646712,-590.4,0.00021917,2]
[385440254,1757850646721,-1130.32,0.00021917,2]
[385440255,1757850646730,-480.0,0.00021917,2]
[385440256,1757850646740,-480.0,0.00021917,2]
[385440257,1757850646749,-936.1,0.00021917,2]
[385440258,1757850646758,-480.0,0.00021917,2]
[385440259,1757850646767,-480.0,0.00021917,2]
[385440260,1757850646777,-480.0,0.00021917,2]
[385440261,1757850646787,-3389.17,0.00021917,2]
[385440262,1757850646796,-15573.91,0.00021917,2]
[385440263,1757850646806,-480.0,0.00021917,2]
[385440264,1757850646815,-480.0,0.00021917,2]
[385440265,1757850646824,-480.0,0.00021917,2]
[385440266,1757850646833,-1564.67,0.00021917,2]
[385440267,1757850646842,-480.0,0.00021917,2]
[385440268,1757850646851,-2581.77,0.00021917,2]
[385440269,1757850646860,-806.04,0.00021917,2]
[385440270,1757850646871,-469.24731808,0.00021917,2]
[385440271,1757850646880,-480.0,0.00021917,2]
[385440272,1757850646890,-480.0,0.00021917,2]
[385440273,1757850646899,-480.0,0.00021917,2]
[385440274,1757850646908,-480.0,0.00021917,2]
[385440275,1757850646917,-4146.65,0.00021917,2]
[385440276,1757850646926,-480.0,0.00021917,2]
[385440277,1757850646935,-1221.51,0.00021917,2]
[385440278,1757850646944,-480.0,0.00021917,2]
[385440279,1757850646953,-1091.02,0.00021917,2]
[385440280,1757850646967,-2313.57,0.00021917,2]
[385440281,1757850646977,-480.0,0.00021917,2]
[385440282,1757850646986,-480.0,0.00021917,2]
[385440283,1757850646995,-153.0,0.00021918,2]
[385440284,1757850647004,-153.0,0.00021918,2]
[385440285,1757850647013,-153.0,0.00021918,2]
[385440286,1757850647021,-153.0,0.00021918,2]
[385440287,1757850647030,-153.0,0.00021918,2]
[385440288,1757850647039,-153.0,0.00021918,2]
[385440289,1757850647049,-153.0,0.00021918,2]
[385440290,1757850647058,-153.0,0.00021918,2]
[385440291,1757850647067,-153.0,0.00021918,2]
[385440292,1757850647077,-153.0,0.00021918,2]
[385440293,1757850647086,-153.0,0.00021918,2]
[385440294,1757850647095,-153.0,0.00021918,2]
[385440295,1757850647104,-153.0,0.00021918,2]
[385440296,1757850647113,-153.0,0.00021918,2]
[385440297,1757850647122,-153.0,0.00021918,2]
[385440298,1757850647131,-153.0,0.00021918,2]
[385440299,1757850647139,-153.0,0.00021918,2]
[385440300,1757850647149,-153.0,0.00021918,2]
[385440301,1757850647158,-153.0,0.00021918,2]
[385440302,1757850647167,-153.0,0.00021918,2]
[385440303,1757850647177,-153.0,0.00021918,2]
[385440304,1757850647186,-153.0,0.00021918,2]
[385440305,1757850647195,-153.0,0.00021918,2]
[385440306,1757850647205,-153.0,0.00021918,2]
[385440307,1757850647214,-153.0,0.00021918,2]
[385440308,1757850647223,-153.0,0.00021918,2]
[385440309,1757850647232,-153.0,0.00021918,2]
[385440310,1757850647241,-153.0,0.00021918,2]
[385440311,1757850647251,-153.0,0.00021918,2]
[385440312,1757850647260,-153.0,0.00021918,2]
[385440313,1757850647269,-153.0,0.00021918,2]
[385440314,1757850647278,-153.0,0.00021918,2]
[385440315,1757850647288,-153.0,0.00021918,2]
[385440316,1757850647297,-153.0,0.00021918,2]
[385440317,1757850647306,-153.0,0.00021918,2]
[385440318,1757850647315,-153.0,0.00021918,2]
[385440319,1757850647325,-500.57534738,0.00021973,2]
[385440320,1757850647335,-500.0,0.00021973,2]
[385440321,1757850647344,-500.0,0.00021973,2]
[385440322,1757850647354,-500.0,0.00021973,2]
[385440323,1757850647363,-500.0,0.00021973,2]
[385440324,1757850647372,-483.17738855,0.00021973,2]
[385440325,1757850647382,-500.0,0.00021973,2]
[385440326,1757850647391,-500.0,0.00021973,2]
[385440327,1757850647401,-194.04556731,0.00021973,2]
[385440328,1757850647410,-500.0,0.00021973,2]
[385440329,1757850647419,-500.0,0.00021973,2]
[385440330,1757850647429,-500.0,0.00021973,2]
[385440331,1757850647438,-500.0,0.00021973,2]
[385440332,1757850647448,-500.0,0.00021973,2]
[385440333,1757850647457,-500.0,0.00021973,2]
[385440334,1757850647467,-500.0,0.00021973,2]
[385440335,1757850647476,-500.0,0.00021973,2]
[385440336,1757850647485,-808.98965695,0.00021983,2]
[385440337,1757850647494,-40763.07,0.00022,7]
[385440338,1757850647503,-1455.09,0.00022,7]
[385440339,1757850647515,-2738.46,0.00022,7]
[385440340,1757850647526,-417.15472785,0.00022,7]
[385440341,1757850647536,-268.12,0.00022,2]
[385440342,1757850647545,-293.438,0.00022035,2]
[385440343,1757850647554,-808.98965695,0.00022072,2]
[385440344,1757850647564,-1000.0,0.00022072,2]
[385440345,1757850647573,-325.0,0.00022077,2]
[385440346,1757850647582,-172.2141233,0.00022168,2]
[385440347,1757850647591,-584.4874247,0.00022168,2]
[385440348,1757850647600,-483.67735926,0.00022172,3]
[385440349,1757850647610,-480.0,0.00022172,3]
[385440350,1757850647620,-480.0,0.00022172,3]
[385440351,1757850647634,-486.1614354,0.00022172,3]
[385440352,1757850647665,-480.0,0.00022172,3]
[385440353,1757850647679,-480.0,0.00022172,3]
[385440354,1757850647698,-426.57310874,0.00022172,3]
[385440355,1757850647710,-203.18226298,0.00022172,3]
[385440356,1757850647720,-483.52350172,0.00022172,3]
[385440357,1757850647729,-590.02571681,0.00022172,3]
[385440358,1757850647738,-480.0,0.00022172,3]
[385440359,1757850647747,-480.0,0.00022172,3]
[385440360,1757850647756,-480.0,0.00022172,3]
[385440361,1757850647765,-464.11618798,0.00022172,3]
[385440362,1757850647774,-480.0,0.00022172,3]
[385440363,1757850647783,-217.06210863,0.00022172,3]
[385440364,1757850647792,-543.55,0.00022172,3]
[385440365,1757850647801,-480.0,0.00022172,3]
[385440366,1757850647809,-480.0,0.00022172,3]
[385440367,1757850647818,-802.85,0.00022172,3]
[385440368,1757850647827,-480.0,0.00022172,3]
[385440369,1757850647836,-480.0,0.00022172,3]
[385440370,1757850647845,-370.38586627,0.00022172,3]
[385440371,1757850647854,-480.0,0.00022172,3]
[385440372,1757850647863,-480.0,0.00022172,2]
[385440373,1757850647875,-480.0,0.00022172,3]
[385440374,1757850647884,-499.93490914,0.00022172,3]
[385440375,1757850647894,-437.11383636,0.00022172,3]
[385440376,1757850647905,-480.70896777,0.00022172,3]
[385440377,1757850647914,-480.0,0.00022172,3]
[385440378,1757850647925,-480.0,0.00022172,3]
[385440379,1757850647936,-480.0,0.00022172,3]
[385440380,1757850647947,-480.0,0.00022172,3]
[385440381,1757850647958,-480.0,0.00022172,3]
[385440382,1757850647969,-480.0,0.00022172,3]
[385440383,1757850647978,-480.0,0.00022172,3]
[385440384,1757850647988,-480.0,0.00022172,3]
[385440385,1757850647999,-480.0,0.00022172,3]
[385440386,1757850648009,-487.41691139,0.00022172,3]
[385440387,1757850648018,-514.94087361,0.00022172,3]
[385440388,1757850648027,-480.0,0.00022172,3]
[385440389,1757850648037,-480.0,0.00022172,3]
[385440390,1757850648047,-480.0,0.00022172,3]
[385440391,1757850648056,-484.57866169,0.00022172,3]
[385440392,1757850648066,-480.0,0.00022172,3]
[385440393,1757850648075,-480.0,0.00022172,3]
[385440394,1757850648084,-480.0,0.00022172,3]
[385440395,1757850648093,-480.0,0.00022172,3]
[385440396,1757850648102,-480.0,0.00022172,3]
[385440397,1757850648112,-480.0,0.00022172,3]
[385440398,1757850648121,-480.0,0.00022172,3]
[385440399,1757850648131,-515.00652018,0.00022172,3]
[385440400,1757850648140,-480.0,0.00022172,3]
[385440401,1757850648150,-480.0,0.00022172,3]
[385440402,1757850648160,-480.0,0.00022172,3]
[385440403,1757850648169,-480.0,0.00022172,3]
[385440404,1757850648178,-480.0,0.00022172,3]
[385440405,1757850648188,-1008.73,0.00022172,3]
[385440406,1757850648197,-480.0,0.00022172,3]
[385440407,1757850648207,-480.0,0.00022172,3]
[385440408,1757850648216,-480.0,0.00022172,3]
[385440409,1757850648226,-484.89163363,0.00022172,3]
[385440410,1757850648235,-481.55492616,0.00022172,3]
[385440411,1757850648245,-480.0,0.00022172,3]
[385440412,1757850648255,-483.98719357,0.00022172,3]
[385440413,1757850648265,-480.93015007,0.00022172,3]
[385440414,1757850648275,-480.0,0.00022172,3]
[385440415,1757850648285,-480.0,0.00022172,3]
[385440416,1757850648294,-482.78603692,0.00022172,3]
[385440417,1757850648304,-482.46448473,0.00022172,3]
[385440418,1757850648313,-480.0,0.00022172,3]
[385440419,1757850648323,-977.25,0.00022172,3]
[385440420,1757850648332,-480.0,0.00022172,3]
[385440421,1757850648342,-480.0,0.00022172,3]
[385440422,1757850648351,-480.0,0.00022172,3]
[385440423,1757850648360,-480.0,0.00022172,3]
[385440424,1757850648370,-483.94271314,0.00022172,3]
[385440425,1757850648379,-480.0,0.00022172,3]
[385440426,1757850648388,-480.0,0.00022172,3]
[385440427,1757850648398,-480.0,0.00022172,3]
[385440428,1757850648407,-480.0,0.00022172,3]
[385440429,1757850648416,-480.0,0.00022172,3]
[385440430,1757850648426,-480.0,0.00022172,3]
[385440431,1757850648435,-480.65224394,0.00022172,3]
[385440432,1757850648444,-487.24301175,0.00022172,3]
[385440433,1757850648454,-480.0,0.00022172,3]
[385440434,1757850648463,-480.0,0.00022172,3]
[385440435,1757850648473,-317.44334604,0.00022172,3]
[385440436,1757850648482,-480.0,0.00022172,3]
[385440437,1757850648491,-480.0,0.00022172,3]
[385440438,1757850648500,-500.0,0.00022172,3]
[385440439,1757850648510,-482.38568238,0.00022172,3]
[385440440,1757850648519,-480.17164729,0.00022172,3]
[385440441,1757850648528,-491.8853568,0.00022172,3]
[385440442,1757850648538,-481.04157323,0.00022172,3]
[385440443,1757850648548,-446.99527316,0.00022172,3]
[385440444,1757850648558,-480.0,0.00022172,3]
[385440445,1757850648567,-480.0,0.00022172,3]
[385440446,1757850648577,-480.0,0.00022172,3]
[385440447,1757850648586,-480.0,0.00022172,3]
[385440448,1757850648595,-480.0,0.00022172,3]
[385440449,1757850648605,-480.0,0.00022172,3]
[385440450,1757850648614,-480.0,0.00022172,3]
[385440451,1757850648624,-480.0,0.00022172,3]
[385440452,1757850648633,-480.0,0.00022172,3]
[385440453,1757850648643,-480.0,0.00022172,3]
[385440454,1757850648653,-665.4,0.00022172,3]
[385440455,1757850648663,-1133.02,0.00022172,3]
[385440456,1757850648672,-480.0,0.00022172,3]
[385440457,1757850648681,-480.0,0.00022172,3]
[385440458,1757850648691,-480.0,0.00022172,3]
[385440459,1757850648700,-482.97578246,0.00022172,3]
[385440460,1757850648709,-480.0,0.00022172,3]
[385440461,1757850648718,-480.0,0.00022172,3]
[385440462,1757850648727,-480.0,0.00022172,3]
[385440463,1757850648737,-1000.0,0.00022172,3]
[385440464,1757850648747,-675.02,0.00022172,3]
[385440465,1757850648756,-480.0,0.00022172,3]
[385440466,1757850648765,-480.0,0.00022172,3]
[385440467,1757850648775,-480.0,0.00022172,3]
[385440468,1757850648784,-284.31910036,0.00022172,3]
[385440469,1757850648794,-483.53437022,0.00022172,3]
[385440470,1757850648803,-466.79920381,0.00022172,3]
[385440471,1757850648813,-480.0,0.00022172,3]
[385440472,1757850648823,-480.0,0.00022172,3]
[385440473,1757850648833,-480.0,0.00022172,3]
[385440474,1757850648843,-510.2,0.00022172,3]
[385440475,1757850648852,-468.44221514,0.00022172,3]
[385440476,1757850648862,-500.0,0.00022172,3]
[385440477,1757850648873,-480.0,0.00022172,3]
[385440478,1757850648882,-480.0,0.00022172,3]
[385440479,1757850648891,-510.20022224,0.00022172,3]
[385440480,1757850648901,-480.0,0.00022172,3]
[385440481,1757850648910,-480.0,0.00022172,3]
[385440482,1757850648920,-480.0,0.00022172,3]
[385440483,1757850648930,-473.92622627,0.00022172,3]
[385440484,1757850648939,-480.0,0.00022172,3]
[385440485,1757850648949,-480.0,0.00022172,3]
[385440486,1757850648961,-480.0,0.00022172,3]